bitfinex-derivatives/quotes_ETHF0:USTF0_20250220
["timestamp","ask_amount","ask_price","bid_price","bid_amount"]
[1740019100274,0.73398,2725.1,2724.7,3.94188]
[1740019100479,0.73396,2725.2,2724.8,0.73404]
[1740019100878,0.73396,2725.2,2724.8,0.73405]
[1740019101273,0.5516,2725.3,2724.7,3.2078]
[1740019101474,0.73399,2725.1,2724.7,3.2078]
[1740019101875,0.734,2725.0,2724.7,3.2078]
[1740019102076,0.5516,2725.3,2724.7,3.2078]
[1740019102280,0.73401,2725.0,2724.7,3.2078]
[1740019103588,0.73399,2725.1,2724.7,3.94186]
[1740019103888,0.734,2725.0,2724.7,3.94186]
[1740019104481,0.5516,2725.3,2724.7,3.2078]
[1740019104684,0.73401,2725.0,2724.7,3.94187]
[1740019105580,0.73401,2725.0,2724.7,3.2078]
[1740019105778,0.73401,2725.0,2724.7,3.94187]
[1740019106584,3.2078,2725.6,2724.7,3.2078]
[1740019106785,0.00549501,2725.7,2725.3,3.2078]
[1740019106995,0.00549501,2725.7,2725.1,1.8349]
[1740019106996,0.00549501,2725.7,2725.6,3.94164]
[1740019107290,0.73363,2726.4,2725.7,0.73378]
[1740019107481,0.73369,2726.2,2725.9,3.2078]
[1740019107785,3.5015,2726.5,2725.9,3.2078]
[1740019107978,1.1405,2726.5,2725.9,3.7602]
[1740019108176,0.73362,2726.4,2725.9,4.49394]
[1740019108685,0.73365,2726.3,2725.9,3.7602]
[1740019109386,0.0055056,2726.4,2725.9,3.7602]
[1740019109586,0.73369,2726.2,2725.9,3.7602]
[1740019110086,0.0055056,2726.4,2725.9,3.7602]
[1740019110285,0.7391456,2726.4,2725.9,3.7602]
[1740019110489,0.0055056,2726.4,2726.2,3.2078]
[1740019111782,0.7391256,2726.4,2726.2,3.2078]
[1740019112087,0.0055056,2726.4,2726.2,3.2078]
[1740019112884,0.0055056,2726.4,2726.3,0.73365]
[1740019113894,0.0055056,2726.4,2726.2,6.30247]
[1740019114594,0.0055056,2726.4,2726.2,6.30246]
[1740019114786,0.0055056,2726.4,2726.2,5.5688]
[1740019115085,0.0055056,2726.4,2726.3,0.73365]
[1740019116683,0.0055056,2726.4,2726.2,5.5688]
[1740019117086,0.0055056,2726.4,2726.2,3.2078]
[1740019117590,0.7391356,2726.4,2726.2,3.2078]
[1740019118087,0.0055056,2726.4,2726.2,3.2078]
[1740019118290,0.73365,2726.3,2726.2,3.2078]
[1740019118690,0.7391456,2726.4,2726.2,3.2078]
[1740019119289,0.0055056,2726.4,2726.2,3.2078]
[1740019121291,0.0055056,2726.4,2726.2,3.94148]
[1740019122189,0.0055056,2726.4,2726.2,3.94146]
[1740019123587,0.0055056,2726.4,2726.3,0.73365]
[1740019126295,0.0055056,2726.4,2726.3,1.28295]
[1740019128701,1.0951,2727.1,2726.7,0.73353]
[1740019128893,1.0951,2727.1,2726.9,3.2078]
[1740019129095,0.73344,2727.1,2726.9,3.2078]
[1740019129394,0.73342,2727.2,2726.9,3.2078]
[1740019129995,0.0055056,2727.3,2726.9,3.2078]
[1740019130403,0.0055056,2727.3,2727.1,0.73343]
[1740019130695,0.7388956,2727.3,2726.9,3.2078]
[1740019130899,0.7388956,2727.3,2726.9,3.94127]
[1740019131402,0.0055056,2727.3,2726.9,3.2078]
[1740019131698,0.0055056,2727.3,2727.0,0.73345]
[1740019132100,0.7388856,2727.3,2727.0,0.73345]
[1740019132802,0.7388856,2727.3,2726.9,3.94127]
[1740019133403,0.7388856,2727.3,2727.2,3.2078]
[1740019136398,0.73346,2727.0,2726.9,3.2078]
[1740019140708,0.0055056,2727.3,2726.9,3.2078]
[1740019140709,0.7388956,2727.3,2726.9,3.94127]
[1740019141002,0.0055056,2727.3,2726.9,3.2078]
[1740019141210,0.0055056,2727.3,2726.9,3.7492]
[1740019141505,0.73344,2727.1,2726.9,3.7492]
[1740019142008,0.73343,2727.1,2726.9,3.7492]
[1740019142310,0.73342,2727.2,2726.9,3.7492]
[1740019142509,0.73342,2727.2,2727.0,0.5899]
[1740019142709,0.73343,2727.1,2727.0,0.5899]
[1740019142911,0.0055056,2727.3,2727.0,0.5899]
[1740019143208,0.73343,2727.1,2727.0,0.5899]
[1740019143402,0.73346,2727.0,2726.9,3.2078]
[1740019145009,0.0055056,2727.3,2726.9,3.2078]
[1740019145510,0.73344,2727.1,2726.9,3.2078]
[1740019145710,0.0055056,2727.3,2726.9,3.2078]
[1740019146010,0.73346,2727.0,2726.9,3.2078]
[1740019154903,0.73349,2726.9,2726.8,0.0055056]
[1740019155114,1.89459,2726.9,2726.8,0.0055056]
[1740019157212,6.1678,2728.1,2726.8,5.5793056]
[1740019157520,0.5826,2728.0,2727.6,3.2078]
[1740019157913,0.73326,2727.8,2727.6,3.2078]
[1740019158120,0.5826,2728.0,2727.6,3.2078]
[1740019158420,0.73327,2727.7,2727.6,3.2078]
[1740019160518,1.1550056,2728.1,2727.6,3.2078]
[1740019160815,0.73326,2727.8,2727.6,3.2078]
[1740019161717,0.73327,2727.7,2727.6,3.2078]
[1740019162919,0.73326,2727.8,2727.6,3.2078]
[1740019163315,4.1150056,2728.1,2727.6,3.2078]
[1740019163515,0.73327,2727.7,2727.6,3.2078]
[1740019165013,0.73324,2727.9,2727.6,3.2078]
[1740019165319,0.73326,2727.8,2727.6,3.2078]
[1740019166321,0.7332,2728.0,2727.6,3.9411]
[1740019166710,0.73322,2727.9,2727.6,3.9411]
[1740019166922,0.73322,2727.9,2727.6,3.2078]
[1740019167619,1.1550056,2728.1,2727.6,3.2078]
[1740019167820,1.1550056,2728.1,2727.6,3.94108]
[1740019168023,0.73319,2728.0,2727.6,3.94108]
[1740019168218,0.73322,2727.9,2727.6,3.94108]
[1740019168520,0.73321,2728.0,2727.6,3.94108]
[1740019168722,0.73322,2727.9,2727.6,3.94108]
[1740019169120,0.5765056,2728.1,2727.6,3.2078]
[1740019169320,0.5765056,2728.1,2727.7,0.73327]
[1740019169321,0.7386856,2728.1,2727.7,0.73327]
[1740019169528,0.0055056,2728.1,2727.7,0.73327]
[1740019169822,0.0055056,2728.1,2727.6,5.5798]
[1740019170019,0.0055056,2728.1,2727.6,6.31308]
[1740019170416,0.73321,2728.0,2727.6,6.31308]
[1740019170816,0.7332,2728.0,2727.6,6.31308]
[1740019171129,0.7386956,2728.1,2727.7,0.73327]
[1740019171324,0.73319,2728.0,2727.7,0.73327]
[1740019171620,0.0055056,2728.1,2727.9,3.2078]
[1740019171820,0.7386856,2728.1,2728.0,0.5865]
[1740019174732,0.7386656,2728.1,2728.0,0.5865]
[1740019175029,0.0055056,2728.1,2728.0,0.5865]
[1740019176024,0.0055056,2728.1,2728.0,1.1434]
[1740019176228,0.0055056,2728.1,2728.0,1.87659]
[1740019176427,0.0055056,2728.1,2728.0,1.1434]
[1740019176828,0.7386656,2728.1,2728.0,1.1434]
[1740019179731,0.7386656,2728.1,2728.0,0.5865]
[1740019182836,0.0055056,2728.1,2727.9,3.2078]
[1740019183137,0.73319,2728.0,2727.9,3.2078]
[1740019184936,0.0055056,2728.1,2727.9,3.2078]
[1740019185140,0.73319,2728.0,2727.9,3.2078]
[1740019185541,0.0055056,2728.1,2727.9,3.941]
[1740019186142,0.0055056,2728.1,2728.0,0.73319]
[1740019186637,0.0055056,2728.1,2728.0,41.53319]
[1740019186937,0.0055056,2728.1,2727.9,3.2078]
[1740019187343,0.0055056,2728.1,2728.0,0.73319]
[1740019188039,0.0055056,2728.1,2727.9,3.2078]
[1740019188343,0.0055056,2728.1,2728.0,3.09719]
[1740019194543,0.0055056,2728.1,2728.0,2.364]
[1740019194743,0.0055056,2728.1,2728.0,3.09719]
[1740019195440,3.2078,2729.1,2728.0,2.364]
[1740019195638,4.47351,2729.1,2728.6,3.94083]
[1740019195838,0.73294,2729.0,2728.7,1.1173]
[1740019196437,3.7406,2729.1,2728.7,1.1173]
[1740019196637,0.73296,2728.9,2728.7,1.1173]
[1740019196838,3.9462256,2729.1,2728.7,1.1173]
[1740019197036,0.0055056,2729.1,2728.9,3.2078]
[1740019197238,0.0055056,2729.1,2728.9,3.50113142]
[1740019197435,0.0055056,2729.1,2729.0,0.5388]
[1740019197643,0.5416,2729.4,2729.0,1.2717]
[1740019197843,0.5416,2729.4,2729.2,3.2078]
[1740019198147,1.1493,2729.6,2729.2,3.2078]
[1740019198447,1.692,2729.6,2729.2,3.2078]
[1740019198645,1.692,2729.6,2729.5,3.2078]
[1740019198846,0.0055056,2729.7,2729.5,3.2078]
[1740019199033,0.0055056,2729.7,2729.6,0.5373]
[1740019199842,0.0055056,2729.7,2729.6,2.9043]
[1740019203462,1.1597,2730.0,2729.6,2.9043]
[1740019203755,0.73268,2729.9,2729.6,2.9043]
[1740019204052,0.73271,2729.8,2729.6,2.9043]
[1740019205252,1.31698173,2730.0,2729.6,2.9043]
[1740019205549,0.7327,2729.9,2729.6,2.9043]
[1740019206257,0.00361173,2730.0,2729.8,3.2078]
[1740019206451,0.00361173,2730.0,2729.9,0.5401]
[1740019209151,0.5874,2730.3,2729.9,0.5401]
[1740019209346,1.31997,2730.3,2730.2,3.2078]
[1740019209560,0.5874,2730.3,2730.2,3.2078]
[1740019210558,0.73256,2730.4,2730.2,3.2078]
[1740019210758,0.73255,2730.4,2730.2,3.2078]
[1740019210947,0.73257,2730.3,2730.2,3.2078]
[1740019211259,0.73257,2730.4,2730.2,3.2078]
[1740019211665,0.73257,2730.3,2730.2,3.2078]
[1740019211958,0.5417,2730.5,2730.2,3.2078]
[1740019212159,0.73257,2730.3,2730.2,3.2078]
[1740019214160,0.5417,2730.5,2730.2,3.2078]
[1740019214357,1.27422,2730.5,2730.2,3.2078]
[1740019214755,0.73255,2730.4,2730.2,3.2078]
[1740019215252,0.5417,2730.5,2730.2,3.2078]
[1740019215453,0.73248,2730.7,2730.2,3.94039]
[1740019215652,1.1045,2730.9,2730.6,3.2078]
[1740019216055,0.5327,2730.9,2730.7,1.1353]
[1740019216251,0.73232,2731.3,2730.7,1.86775]
[1740019216455,0.5327,2731.2,2731.0,3.2078]
[1740019216861,0.73236,2731.1,2731.0,3.2078]
[1740019217758,0.73236,2731.1,2731.0,3.49963133]
[1740019218168,0.73236,2731.1,2731.0,3.2078]
[1740019218456,0.5327,2731.2,2730.7,3.2078]
[1740019218653,0.73244,2730.8,2730.7,3.2078]
[1740019219054,0.5327,2731.2,2730.7,3.2078]
[1740019219458,0.5327,2731.2,2730.8,0.5614]
[1740019219656,0.73241,2730.9,2730.8,0.5614]
[1740019222160,0.7324,2731.0,2730.8,0.5614]
[1740019222356,0.73241,2730.9,2730.8,0.5614]
[1740019227080,0.5327,2731.2,2730.7,3.2078]
[1740019227267,0.73244,2730.8,2730.7,3.2078]
[1740019228066,4.2919,2731.0,2730.4,5.5688]
[1740019228260,0.73252,2730.5,2730.4,3.2078]
[1740019231171,0.73252,2730.5,2730.2,1.42474409]
[1740019231172,0.5636,2730.7,2730.2,1.1359]
[1740019231474,0.7326,2730.2,2730.1,3.2078]
[1740019240182,0.73263,2730.1,2730.0,0.00549541]
[1740019244284,3.2078,2730.6,2730.0,0.00549541]
[1740019244484,4.312,2730.9,2730.1,5.5648]
[1740019244685,0.73259,2730.3,2730.2,0.5539]
[1740019248286,0.73259,2730.3,2730.2,2.9109]
[1740019248990,0.73259,2730.3,2730.2,0.5539]
[1740019254796,0.5802,2730.5,2730.2,0.5539]
[1740019254997,0.73257,2730.3,2730.2,0.5539]
[1740019256187,0.5802,2730.5,2730.2,0.5539]
[1740019256389,0.73251,2730.6,2730.2,0.5539]
[1740019256589,0.73253,2730.5,2730.2,0.5539]
[1740019257093,0.73253,2730.5,2730.4,3.2078]
[1740019257592,0.5721,2731.0,2730.4,3.2078]
[1740019257788,0.73244,2730.8,2730.7,3.2078]
[1740019262395,0.5721,2731.0,2730.7,3.2078]
[1740019262698,0.73241,2730.9,2730.8,0.5578]
[1740019263395,0.5721,2731.0,2730.8,0.5578]
[1740019263698,3.2078,2731.3,2730.8,2.9138]
[1740019263895,1.83023,2732.2,2731.4,0.73227]
[1740019264100,0.73205,2732.3,2731.7,3.2078]
[1740019264295,1.88782,2732.4,2732.0,3.2078]
[1740019264601,1.1558,2732.4,2732.0,3.2078]
[1740019264797,0.73205,2732.3,2732.0,3.2078]
[1740019264998,1.1558,2732.4,2732.0,3.2078]
[1740019264999,0.73209,2732.1,2732.0,3.2078]
[1740019267593,0.73214,2731.9,2731.8,2.364]
[1740019268899,0.73217,2731.8,2731.7,3.2078]
[1740019269799,0.73217,2731.8,2731.7,3.50271385]
[1740019270204,0.73217,2731.8,2731.7,3.2078]
[1740019270800,0.73217,2731.8,2731.7,3.50486967]
[1740019271003,0.73217,2731.8,2731.7,3.2078]
[1740019271503,8.8686,2732.4,2731.7,3.2078]
[1740019271802,0.73216,2731.9,2731.7,3.2078]
[1740019272108,0.73215,2731.9,2731.7,3.2078]
[1740019272304,0.73217,2731.9,2731.7,3.2078]
[1740019272507,0.73217,2731.8,2731.7,3.2078]
[1740019273299,0.73217,2731.9,2731.7,3.2078]
[1740019274205,3.2078,2733.2,2731.7,3.50425285]
[1740019274398,0.73202,2732.4,2732.1,3.2078]
[1740019274607,0.73198,2732.5,2732.1,3.2078]
[1740019274802,0.73205,2732.3,2732.1,3.2078]
[1740019275104,1.1236,2732.4,2732.1,3.2078]
[1740019275308,0.73205,2732.3,2732.1,3.2078]
[1740019275806,1.1236,2732.4,2732.1,3.2078]
[1740019276008,0.73206,2732.3,2732.1,3.2078]
[1740019276707,0.73206,2732.3,2732.2,0.5417]
[1740019281210,0.73203,2732.4,2732.2,0.5417]
[1740019281915,0.5706,2732.6,2732.2,3.64075]
[1740019282113,0.5706,2732.6,2732.5,3.2078]
[1740019282413,1.30256,2732.6,2732.5,3.2078]
[1740019286116,0.73204,2732.3,2732.2,3.7495]
[1740019295737,0.5706,2732.6,2732.2,3.7495]
[1740019296034,0.73201,2732.4,2732.3,0.5709]
[1740019296539,0.732,2732.5,2732.3,0.5709]
[1740019296726,0.5706,2732.6,2732.3,0.5709]
[1740019296932,0.73194,2732.7,2732.3,1.30292]
[1740019297135,0.73194,2732.7,2732.4,2.36]
[1740019297338,0.73197,2732.6,2732.4,2.36]
[1740019297639,0.73198,2732.5,2732.4,2.36]
[1740019302129,3.7755,2732.9,2732.3,0.5709]
[1740019302335,1.28261,2732.4,2732.3,0.5709]
[1740019303437,3.2078,2732.9,2732.3,0.5709]
[1740019303634,0.5506,2732.8,2732.3,0.5709]
[1740019303837,0.73197,2732.6,2732.3,1.1223]
[1740019304038,0.73199,2732.5,2732.3,1.1223]
[1740019304336,0.73199,2732.5,2732.4,3.2078]
[1740019309937,0.5506,2732.8,2732.4,3.2078]
[1740019310141,0.5506,2732.8,2732.4,3.7742]
[1740019310341,0.73198,2732.5,2732.4,3.2078]
[1740019311946,0.73197,2732.6,2732.4,3.2078]
[1740019312148,0.5506,2732.8,2732.4,4.5062]
[1740019312448,0.5506,2732.8,2732.7,3.2078]
[1740019312642,1.2825,2732.8,2732.7,3.2078]
[1740019325353,0.5506,2732.8,2732.4,3.2078]
[1740019325548,0.73198,2732.5,2732.4,3.2078]
[1740019328652,0.5506,2732.8,2732.4,3.2078]
[1740019328858,0.73193,2732.7,2732.4,3.2078]
[1740019329053,0.5506,2732.8,2732.4,3.7436]
[1740019329258,0.73198,2732.6,2732.4,3.7436]
[1740019329748,0.73197,2732.6,2732.4,3.7436]
[1740019330152,0.73195,2732.7,2732.4,3.7436]
[1740019330358,0.73196,2732.6,2732.4,3.7436]
[1740019330952,0.73198,2732.5,2732.4,3.7436]
[1740019335860,0.73197,2732.6,2732.4,3.7436]
[1740019336358,0.73195,2732.7,2732.4,4.47561]
[1740019336559,0.73196,2732.6,2732.4,3.7436]
[1740019337261,0.73194,2732.7,2732.4,4.4756]
[1740019337664,0.5506,2732.8,2732.4,3.7436]
[1740019337960,0.73195,2732.7,2732.4,4.4756]
[1740019338655,0.5506,2732.8,2732.5,0.54130649]
[1740019338656,1.28251,2732.8,2732.5,0.54130649]
[1740019338858,2.96,2733.5,2732.7,3.2078]
[1740019339058,1.0997,2733.5,2733.0,3.2078]
[1740019339262,0.536,2733.7,2733.4,3.2078]
[1740019339468,5.5628,2734.1,2733.5,1.0778]
[1740019339664,3.9907,2734.0,2733.5,1.0778]
[1740019340167,0.73169,2733.6,2733.5,1.0778]
[1740019341156,3.9907,2734.0,2733.5,1.0778]
[1740019341961,0.73161,2733.9,2733.5,1.0778]
[1740019342455,1.6357,2734.0,2733.5,1.0778]
[1740019342662,1.0997,2734.0,2733.5,1.0778]
[1740019342859,1.0997,2734.0,2733.7,3.2078]
[1740019343063,0.7316,2734.0,2733.7,3.2078]
[1740019343264,1.1284,2734.7,2733.7,3.2078]
[1740019343564,0.73145,2734.5,2734.1,3.2078]
[1740019343769,0.73148,2734.4,2734.2,1.1302]
[1740019343969,0.7315,2734.3,2734.2,1.1302]
[1740019345266,1.1284,2734.7,2734.2,1.1302]
[1740019345570,0.7315,2734.3,2734.2,1.1302]
[1740019348178,2.9355,2734.7,2734.1,3.2078]
[1740019348470,0.73156,2734.1,2734.0,0.00549541]
[1740019348767,2.365,2734.7,2734.0,0.00549541]
[1740019348972,0.73152,2734.3,2734.0,3.21329541]
[1740019349170,0.5638,2734.5,2734.1,0.5367]
[1740019349366,0.7315,2734.3,2734.2,0.5632]
[1740019349672,0.5638,2734.5,2734.2,0.5632]
[1740019349972,0.7315,2734.3,2734.2,0.5632]
[1740019350471,3.7716,2734.5,2734.0,2.37449541]
[1740019350672,0.73156,2734.1,2734.0,2.37449541]
[1740019350972,0.73156,2734.1,2734.0,0.00549541]
[1740019351172,1.27386,2734.1,2734.0,0.00549541]
[1740019355269,0.73174,2733.4,2733.3,2.9072]
[1740019355680,0.73174,2733.4,2733.3,3.19988701]
[1740019356072,0.73174,2733.4,2733.3,2.9072]
[1740019357275,0.00549541,2733.6,2733.3,2.9072]
[1740019357477,0.73719541,2733.6,2733.3,2.9072]
[1740019357669,0.00549541,2733.6,2733.4,0.5652]
[1740019358068,0.73172,2733.5,2733.4,0.5652]
[1740019362182,0.00549541,2733.6,2733.3,2.9072]
[1740019362386,0.73174,2733.4,2733.3,2.9072]
[1740019367089,0.73174,2733.4,2733.3,0.5382]
[1740019367787,1.29734,2733.4,2733.3,0.5382]
[1740019369489,0.73177,2733.3,2733.2,3.7942]
[1740019372395,0.73177,2733.3,2733.2,0.5864]
[1740019374586,0.7318,2733.2,2733.1,0.00549541]
[1740019381699,0.73182,2733.1,2733.0,0.28864507]
[1740019381892,0.73204,2732.3,2732.2,5.5262]
[1740019382099,0.73204,2732.3,2732.2,4.3276]
[1740019382297,1.1436,2733.0,2732.2,10.86766785]
[1740019382503,2.36,2733.2,2732.9,3.2078]
[1740019382700,1.1436,2733.4,2733.0,0.543]
[1740019382896,1.87536,2733.4,2733.0,0.543]
[1740019383097,0.00549541,2733.6,2733.0,1.1198]
[1740019383297,0.00549541,2733.6,2733.2,3.2078]
[1740019383495,0.73177,2733.3,2733.2,3.2078]
[1740019384005,0.73176,2733.4,2733.2,3.2078]
[1740019384204,0.73177,2733.3,2733.2,3.2078]
[1740019388009,0.7318,2733.2,2733.1,0.5375]
[1740019389807,0.73182,2733.1,2733.0,0.543]
[1740019390111,1.27942,2733.1,2733.0,0.543]
[1740019391111,0.73185,2733.0,2732.9,3.2078]
[1740019391307,1.30955,2733.0,2732.9,3.2078]
[1740019391615,0.73185,2733.0,2732.9,3.2078]
[1740019394812,0.73188,2732.9,2732.8,0.00549541]
[1740019423827,0.73188,2732.9,2732.8,0.56339541]
[1740019427027,0.73188,2732.9,2732.8,1.12299541]
[1740019431331,0.73188,2732.9,2732.8,0.00549541]
[1740019436645,3.69188,2732.9,2732.8,0.00549541]
[1740019437336,6.04688,2732.9,2732.8,0.00549541]
[1740019442139,12.04688,2732.9,2732.8,5.41e-06]
[1740019442344,9.08688,2732.9,2732.8,5.41e-06]
[1740019442541,9.14581777,2732.9,2732.8,5.41e-06]
[1740019443438,9.14582091,2732.9,2732.8,5.41e-06]
[1740019446247,9.08688,2732.9,2732.8,5.41e-06]
[1740019446447,9.14582087,2732.9,2732.8,5.41e-06]
[1740019451850,9.14582105,2732.9,2732.8,5.41e-06]
[1740019453645,9.14582406,2732.9,2732.8,5.41e-06]
[1740019457052,9.14582412,2732.9,2732.8,5.41e-06]
[1740019460051,9.08688,2732.9,2732.8,5.41e-06]
[1740019460349,0.73206,2732.2,2732.1,1.1619]
[1740019460656,6.29486,2732.2,2732.1,1.1619]
[1740019461945,6.29486,2732.2,2732.1,0.5895]
[1740019461946,6.35381281,2732.2,2732.1,0.5895]
[1740019462453,6.35381281,2732.2,2731.9,0.00549541]
[1740019462454,0.73212,2732.0,2731.9,0.00549541]
[1740019467449,0.79107931,2732.0,2731.9,0.00549541]
[1740019468943,0.79107912,2732.0,2731.9,0.00549541]
[1740019469454,0.79107912,2732.0,2731.9,5.41e-06]
[1740019470458,1.37687912,2732.0,2731.9,5.41e-06]
[1740019471055,1.91397912,2732.0,2731.9,5.41e-06]
[1740019472347,7.91397912,2732.0,2731.9,5.41e-06]
[1740019472548,7.18186663,2732.0,2731.6,5.41e-06]
[1740019472754,0.73223,2731.6,2731.5,0.5625]
[1740019473053,3.14719936,2731.6,2731.5,0.5625]
[1740019473250,3.70649936,2731.6,2731.5,0.5625]
[1740019473455,2.97426936,2731.6,2731.4,0.5725]
[1740019473645,0.73225,2731.5,2731.4,0.5725]
[1740019474250,4.0161,2731.6,2731.3,0.5412]
[1740019474558,0.73231,2731.3,2731.2,0.00549541]
[1740019476460,3.08831,2731.3,2731.2,0.00549541]
[1740019480665,5.5638,2731.4,2731.2,0.00549541]
[1740019481455,0.73231,2731.3,2731.2,0.00549541]
[1740019481964,0.73231,2731.3,2731.2,0.55239541]
[1740019497865,0.73231,2731.3,2731.2,0.00549541]
[1740019498869,2.41101,2731.3,2731.2,0.00549541]
[1740019501662,5.61881,2731.3,2731.2,0.00549541]
[1740019503274,7.97481,2731.3,2731.2,0.00549541]
[1740019504861,3.2078,2731.3,2731.2,0.00549541]
[1740019505172,0.7323,2731.4,2731.2,0.00549541]
[1740019505566,0.5673,2731.3,2731.2,0.00549541]
[1740019506070,1.29961,2731.3,2731.2,0.00549541]
[1740019506262,0.5673,2731.3,2731.2,0.00549541]
[1740019506466,1.83786,2731.5,2731.2,0.00549541]
[1740019506775,1.6832,2731.5,2731.2,0.00549541]
[1740019506972,0.73229,2731.4,2731.2,0.00549541]
[1740019507479,1.6832,2731.5,2731.2,0.00549541]
[1740019507775,0.73231,2731.3,2731.2,0.00549541]
[1740019507961,1.6832,2731.5,2731.2,0.00549541]
[1740019508168,6.1678,2731.9,2731.3,3.94009]
[1740019508369,6.1678,2731.9,2731.3,3.2078]
[1740019508370,3.2078,2731.9,2731.3,3.2078]
[1740019508562,3.2078,2731.9,2731.4,0.73226]
[1740019508765,3.93997,2731.9,2731.5,1.1369]
[1740019508970,0.73217,2731.9,2731.6,3.2078]
[1740019509177,0.5776,2732.1,2731.6,3.2078]
[1740019509468,0.00549541,2732.2,2731.9,3.2078]
[1740019509672,0.00549541,2732.2,2732.0,1.7147]
[1740019510171,0.73209,2732.1,2732.0,1.7147]
[1740019510471,0.73217,2731.8,2731.7,43.156]
[1740019510668,0.73217,2731.8,2731.7,1.1643]
[1740019510971,1.153,2732.1,2731.6,3.2078]
[1740019511169,0.5561,2732.0,2731.6,3.2078]
[1740019511365,0.5561,2732.0,2731.7,0.5778]
[1740019511564,0.00549541,2732.2,2731.7,0.5778]
[1740019511768,0.00549541,2732.2,2732.0,3.2078]
[1740019511975,0.00549541,2732.2,2732.1,1.6961]
[1740019512973,0.73755541,2732.2,2732.1,1.6961]
[1740019513374,0.00549541,2732.2,2731.6,3.754]
[1740019513576,0.73209,2732.1,2731.6,5.06861]
[1740019513879,0.00549541,2732.2,2731.7,0.5682]
[1740019514175,0.73757541,2732.2,2731.9,3.2078]
[1740019514471,0.00549541,2732.2,2731.9,3.2078]
[1740019514678,0.73757541,2732.2,2731.9,3.2078]
[1740019514975,0.73209,2732.1,2731.9,3.2078]
[1740019515176,0.00549541,2732.2,2731.9,3.2078]
[1740019515372,0.00549541,2732.2,2731.7,0.5682]
[1740019515575,0.00549541,2732.2,2731.9,3.2078]
[1740019515770,0.00549541,2732.2,2731.9,3.93994]
[1740019516277,0.73756541,2732.2,2731.9,3.2078]
[1740019516579,0.73756541,2732.2,2731.9,3.93994]
[1740019516778,0.73756541,2732.2,2731.9,3.2078]
[1740019517174,0.00549541,2732.2,2731.9,3.93994]
[1740019517479,0.00549541,2732.2,2731.9,3.2078]
[1740019517675,0.00549541,2732.2,2731.9,5.5628]
[1740019517876,0.00549541,2732.2,2732.1,0.73209]
[1740019518973,0.00549541,2732.2,2732.0,0.73211]
[1740019519173,0.00549541,2732.2,2732.1,1.81939]
[1740019519379,0.575,2732.8,2732.1,1.6779]
[1740019519580,0.575,2732.8,2732.5,3.2078]
[1740019519784,1.30691,2732.8,2732.6,1.6947]
[1740019520182,0.575,2732.8,2732.6,1.6947]
[1740019520474,0.73193,2732.7,2732.6,1.6947]
[1740019522269,0.575,2732.8,2732.5,3.50319128]
[1740019522476,0.73196,2732.6,2732.5,3.2078]
[1740019525483,0.575,2732.8,2732.4,0.5666]
[1740019525681,1.31788,2732.5,2732.4,0.5666]
[1740019525880,0.73198,2732.5,2732.4,0.5666]
[1740019527887,0.73201,2732.4,2732.3,2.64425321]
[1740019531187,0.732,2732.5,2732.3,3.37627321]
[1740019531487,0.73201,2732.4,2732.3,2.64425321]
[1740019533098,0.5859,2732.7,2732.3,2.64425321]
[1740019533392,0.73196,2732.6,2732.5,3.2078]
[1740019533601,1.31784,2732.7,2732.5,4.294]
[1740019533783,1.31784,2732.7,2732.5,4.883]
[1740019533981,0.73196,2732.6,2732.5,4.883]
[1740019534493,0.5803,2732.9,2732.5,4.883]
[1740019534690,0.73196,2732.6,2732.5,4.883]
[1740019537189,0.73196,2732.6,2732.5,3.2078]
[1740019537389,0.73201,2732.4,2732.3,2.64425321]
[1740019537690,1.1416,2732.9,2732.3,2.64425321]
[1740019537891,0.73199,2732.5,2732.3,3.37628321]
[1740019538191,0.73201,2732.4,2732.3,2.64425321]
[1740019538383,0.73199,2732.5,2732.3,2.64425321]
[1740019538785,0.73199,2732.5,2732.3,3.37628321]
[1740019538984,0.73199,2732.5,2732.3,2.64425321]
[1740019539289,1.1416,2732.9,2732.3,2.64425321]
[1740019539491,0.732,2732.5,2732.3,2.64425321]
[1740019540390,0.73197,2732.6,2732.4,0.73201]
[1740019540787,1.1416,2732.9,2732.3,3.37627321]
[1740019541091,0.73198,2732.5,2732.3,3.37627321]
[1740019541291,1.1416,2732.9,2732.3,3.37627321]
[1740019541591,0.73199,2732.5,2732.3,3.37627321]
[1740019541790,0.73197,2732.6,2732.4,0.732]
[1740019541992,0.73196,2732.7,2732.4,0.73199]
[1740019542184,0.73196,2732.6,2732.4,0.73199]
[1740019542391,1.1416,2732.9,2732.3,2.64425321]
[1740019542592,1.1416,2732.9,2732.6,0.73194]
[1740019542887,0.7319,2732.8,2732.7,1.6722]
[1740019545091,1.8735,2732.9,2732.7,1.6722]
[1740019545289,1.1416,2732.9,2732.7,1.6722]
[1740019545485,0.7319,2732.8,2732.7,1.6722]
[1740019545998,1.1416,2732.9,2732.5,3.2078]
[1740019546291,0.73196,2732.6,2732.5,3.2078]
[1740019552384,1.1416,2732.9,2732.5,3.2078]
[1740019552788,0.73194,2732.7,2732.5,3.2078]
[1740019553197,0.5723,2732.6,2732.5,3.2078]
[1740019553800,1.30426,2732.6,2732.5,3.2078]
[1740019553996,0.5723,2732.6,2732.5,3.7687]
[1740019554590,0.5723,2732.6,2732.5,4.50068]
[1740019554795,0.5803,2732.9,2732.5,4.50068]
[1740019554992,0.73192,2732.8,2732.5,4.50068]
[1740019555894,0.73193,2732.8,2732.5,4.50068]
[1740019556296,0.73193,2732.8,2732.5,3.7687]
[1740019556496,1.1328,2732.9,2732.6,0.73194]
[1740019556800,1.28438,2732.9,2732.8,3.2078]
[1740019558191,0.00549541,2733.0,2732.8,3.9397]
[1740019559099,0.73734541,2733.0,2732.8,3.9397]